bitfinex/quotes_SOLUSD_20251009
["timestamp","ask_amount","ask_price","bid_price","bid_amount"]
[1759988492134,20.8,228.16,228.06,4.38481101]
[1759988492135,1.46265376,228.13,228.06,4.38481101]
[1759988492318,31.06,228.12,228.06,4.38481101]
[1759988492518,32.52265376,228.12,228.06,4.38481101]
[1759988492728,31.06,228.12,228.06,5.04481101]
[1759988493017,32.52265376,228.12,228.06,5.04481101]
[1759988493826,31.06,228.12,228.06,16.00683854]
[1759988495345,32.52265376,228.12,228.06,16.00683854]
[1759988495523,1.46265376,228.09,228.05,0.2]
[1759988495833,1.46265376,228.08,228.05,0.2]
[1759988496049,1.46265376,228.07,228.05,0.2]
[1759988496224,1.46265376,228.06,228.05,0.2]
[1759988496617,1.46265376,228.07,228.05,0.2]
[1759988497232,31.62,228.09,228.05,0.2]
[1759988497233,1.46265376,228.06,228.05,0.2]
[1759988498754,1.46265376,228.07,228.05,0.2]
[1759988501337,1.46265376,228.06,228.05,0.2]
[1759988501540,2.02265376,228.06,228.05,0.2]
[1759988501738,1.46265376,228.06,228.05,0.2]
[1759988501937,2.02265376,228.06,228.05,0.2]
[1759988502140,22.82265376,228.06,228.05,0.2]
[1759988502736,53.88265376,228.06,228.05,0.2]
[1759988503235,58.26746477,228.06,228.05,0.2]
[1759988505657,53.32265376,228.06,228.05,0.2]
[1759988506657,31.06,228.06,228.05,0.88]
[1759988506830,31.06,228.06,228.05,0.2]
[1759988509243,37.46746477,228.06,228.05,0.2]
[1759988511733,36.90746477,228.06,228.05,0.2]
[1759988512846,37.46746477,228.06,228.05,0.2]
[1759988513455,36.90746477,228.06,228.05,0.2]
[1759988515529,32.52265376,228.06,228.05,0.2]
[1759988517148,36.90746477,228.06,228.05,0.2]
[1759988519929,37.46746477,228.06,228.05,0.2]
[1759988520645,35.44481101,228.06,228.05,0.2]
[1759988520847,36.90746477,228.06,228.05,0.2]
[1759988521146,6.40746477,228.06,228.05,0.2]
[1759988521352,37.46746477,228.06,228.05,0.2]
[1759988521551,36.90746477,228.06,228.05,0.2]
[1759988521952,37.46746477,228.06,228.05,0.2]
[1759988522439,36.90746477,228.06,228.05,0.2]
[1759988523762,1.46265376,228.07,228.05,0.88]
[1759988523963,1.46265376,228.08,228.06,0.68]
[1759988524261,32.52265376,228.07,228.05,0.2]
[1759988524431,31.06,228.06,228.05,0.2]
[1759988524869,31.06,228.06,228.05,0.88]
[1759988525734,32.52265376,228.06,228.05,0.2]
[1759988525933,36.90746477,228.06,228.05,0.2]
[1759988526443,20.8,228.03,228.01,0.1]
[1759988526654,32.52265376,228.02,228.01,0.1]
[1759988526952,5.84823397,228.02,228.01,0.1]
[1759988527163,36.90823397,228.02,228.01,0.1]
[1759988529360,37.36823397,228.02,228.01,0.1]
[1759988531370,27.10823397,228.02,228.01,0.1]
[1759988531547,37.36823397,228.02,228.01,0.1]
[1759988532345,3.66660272,228.14,228.01,0.76]
[1759988532545,33.80000418,228.34,228.13,20.8]
[1759988532546,1.46265376,228.22,228.13,20.8]
[1759988532746,28.2,228.22,228.14,0.66]
[1759988533058,1.46265376,228.19,228.14,0.66]
[1759988533363,1.46265376,228.19,228.13,20.8]
[1759988533364,32.96265376,228.19,228.15,0.66]
[1759988533552,1.46265376,228.17,228.16,0.66]
[1759988533755,32.96265376,228.17,228.13,0.66]
[1759988533953,32.96265376,228.17,228.07,10.87647521]
[1759988534160,32.96265376,228.17,228.14,0.66]
[1759988534364,1.46265376,228.22,228.16,4.3828892]
[1759988534682,31.5,228.21,228.17,3.7525702]
[1759988534863,31.5,228.21,228.18,3.7525702]
[1759988535055,31.5,228.21,228.19,3.0925702]
[1759988535377,31.5,228.21,228.2,3.0925702]
[1759988536254,31.5,228.21,228.18,0.66]
[1759988537273,1.46265376,228.2,228.18,0.66]
[1759988537477,31.5,228.19,228.15,0.66]
[1759988537677,1.46265376,228.18,228.16,3.51417979]
[1759988537882,1.46265376,228.18,228.17,0.66]
[1759988538479,32.96265376,228.19,228.17,0.66]
[1759988539886,33.78326417,228.19,228.17,0.66]
[1759988543614,33.78326417,228.19,228.11,10.95962474]
[1759988543615,2.28326417,228.18,228.14,0.66]
[1759988543759,2.28326417,228.15,228.11,0.66]
[1759988543959,33.70326417,228.14,228.12,0.66]
[1759988544160,31.42,228.13,228.07,20.8]
[1759988544566,33.70326417,228.13,228.04,10.87647521]
[1759988544783,33.70326417,228.13,228.05,16.00739328]
[1759988544999,2.28326417,228.11,228.06,0.66]
[1759988545190,2.28326417,228.09,228.06,0.66]
[1759988545385,31.42,228.08,228.06,0.66]
[1759988545614,31.42,228.08,228.07,0.66]
[1759988546810,2.28326417,228.12,228.07,5.04461875]
[1759988546978,31.4,228.11,228.08,0.66]
[1759988547182,31.4,228.11,228.09,0.66]
[1759988547402,31.4,228.11,228.1,0.66]
[1759988548304,33.68326417,228.12,228.1,0.66]
[1759988548508,31.4,228.12,228.11,0.66]
[1759988549193,31.4,228.12,228.11,3.47861068]
[1759988549394,31.4,228.12,228.11,0.66]
[1759988549695,33.68326417,228.12,228.09,5.04421952]
[1759988549886,2.28326417,228.11,228.1,3.46439947]
[1759988550711,2.28326417,228.11,228.1,3.46440615]
[1759988550901,2.28326417,228.11,228.06,10.96177049]
[1759988550902,2.28326417,228.11,228.06,5.04470481]
[1759988551110,2.28326417,228.08,228.07,3.46492066]
[1759988553506,2.28326417,228.08,228.07,2.80492066]
[1759988554093,2.28326417,228.08,228.03,0.66]
[1759988554094,27.46769068,228.08,228.03,0.66]
[1759988554300,2.28326417,228.05,228.03,0.66]
[1759988554500,2.28326417,228.04,228.02,4.38555413]
[1759988554818,33.64326417,228.04,228.03,0.66]
[1759988555612,33.64326417,228.04,228.01,0.1]
[1759988555793,2.28326417,228.02,228.01,0.1]
[1759988556394,2.28326417,228.02,228.01,0.82]
[1759988557498,2.28326417,228.02,228.01,0.1]
[1759988557696,33.64326417,228.02,228.01,0.1]
[1759988559696,0.46,228.08,228.01,0.82]
[1759988560015,2.28326417,228.03,228.01,0.82]
[1759988560213,31.34,228.02,228.01,0.82]
[1759988561610,33.62326417,228.02,228.01,0.1]
[1759988562717,34.08326417,228.02,228.01,0.1]
[1759988562894,38.46884438,228.02,228.01,0.1]
[1759988564411,38.00884438,228.02,228.01,0.1]
[1759988571141,38.40884438,228.02,228.01,0.1]
[1759988571501,31.74,228.02,228.01,0.1]
[1759988572515,36.12558021,228.02,228.01,0.1]
[1759988575306,4.84558021,228.02,228.01,0.1]
[1759988575506,36.08558021,228.02,228.01,0.1]
[1759988576120,35.62558021,228.02,228.01,0.1]
[1759988579728,46.96205542,228.02,228.01,0.1]
[1759988580026,20.8,227.99,227.92,0.71]
[1759988580230,2.28326417,227.93,227.92,0.71]
[1759988580428,2.28326417,227.93,227.91,0.1]
[1759988580605,31.22,227.92,227.91,0.81]
[1759988580802,2.28326417,227.92,227.91,0.1]
[1759988581109,27.47076855,227.92,227.91,0.1]
[1759988581324,29.75403272,227.92,227.91,0.1]
[1759988581626,30.21403272,227.92,227.91,0.1]
[1759988581831,61.43403272,227.92,227.91,0.1]
[1759988582243,72.31050793,227.92,227.91,0.1]
[1759988582814,41.09050793,227.92,227.91,0.1]
[1759988583035,72.31050793,227.92,227.91,0.1]
[1759988584616,31.67647521,227.89,227.88,0.1]
[1759988584816,31.67647521,227.85,227.82,0.1]
[1759988585028,2.28326417,227.83,227.82,0.1]
[1759988585335,33.52326417,227.83,227.82,0.1]
[1759988585723,47.14300355,227.83,227.82,0.1]
[1759988585929,51.07224113,227.83,227.82,0.1]
[1759988586433,51.53224113,227.83,227.82,0.1]
[1759988587331,2.28326417,227.79,227.78,0.1]
[1759988587512,33.50326417,227.79,227.78,0.1]
[1759988588020,37.89327251,227.79,227.78,0.1]
[1759988590616,6.67327251,227.79,227.78,0.1]
[1759988590918,37.87327251,227.79,227.78,0.1]
[1759988592526,48.74974772,227.79,227.78,0.1]
[1759988594329,48.74974772,227.79,227.73,0.69]
[1759988594523,2.28326417,227.74,227.73,0.69]
[1759988594725,33.46326417,227.74,227.71,0.69]
[1759988594936,31.18,227.74,227.72,0.69]
[1759988595139,2.28326417,227.73,227.72,0.69]
[1759988596419,6.67442914,227.73,227.72,0.69]
[1759988596930,37.87442914,227.73,227.7,0.2]
[1759988597142,2.28326417,227.71,227.7,0.89]
[1759988597352,33.46326417,227.71,227.7,0.89]
[1759988597545,33.46326417,227.71,227.7,0.39]
[1759988598360,37.85481482,227.71,227.7,0.39]
[1759988599530,37.85481482,227.71,227.68,0.1]
[1759988599729,37.85481482,227.71,227.7,0.69]
[1759988599936,37.03943353,227.71,227.7,0.69]
[1759988600438,38.50731641,227.71,227.68,0.1]
[1759988600755,22.26788288,227.69,227.68,0.1]
[1759988601054,53.42788288,227.69,227.68,0.1]
[1759988602554,57.81981928,227.69,227.68,0.1]
[1759988602936,37.53629449,227.69,227.68,0.1]
[1759988603132,68.69629449,227.69,227.68,0.1]
[1759988603333,26.65981928,227.69,227.68,0.79]
[1759988603532,57.83981928,227.69,227.68,0.79]
[1759988603764,25.1919364,227.69,227.68,0.1]
[1759988604061,57.83981928,227.69,227.68,0.1]
[1759988604233,20.8,227.72,227.68,0.79]
[1759988604434,1.46788288,227.69,227.68,0.79]
[1759988604646,32.66788288,227.69,227.68,0.79]
[1759988605359,32.66788288,227.69,227.68,0.1]
[1759988605533,31.2,227.69,227.68,0.79]
[1759988606860,35.5919364,227.69,227.68,0.79]
[1759988607032,31.2,227.69,227.68,0.79]
[1759988607351,5.85964575,227.7,227.68,0.79]
[1759988607567,31.18,227.69,227.68,0.79]
[1759988608350,7.32759419,227.7,227.68,0.79]
[1759988608672,31.18,227.69,227.68,0.79]
[1759988608842,31.18,227.69,227.68,0.1]
[1759988609253,5.85971131,227.7,227.68,0.1]
[1759988609446,25.19124769,227.73,227.69,0.69]
[1759988609638,1.46788288,227.7,227.69,0.69]
[1759988609834,32.64788288,227.7,227.68,0.1]
[1759988610444,32.64788288,227.7,227.69,0.69]
[1759988610744,34.11576576,227.7,227.68,0.1]
[1759988610946,20.8,227.74,227.69,0.69]
[1759988611246,2.93576576,227.7,227.68,0.1]
[1759988611450,31.22,227.69,227.68,0.1]
[1759988611973,11.53647521,227.69,227.61,0.69]
[1759988612260,1.46788288,227.62,227.61,0.69]
[1759988612447,32.70788288,227.62,227.61,0.69]
[1759988614545,31.24,227.62,227.61,0.69]
[1759988614739,32.70788288,227.62,227.61,0.69]
[1759988615438,37.10116993,227.62,227.57,0.69]
[1759988615652,1.46788288,227.58,227.56,4.39444007]
[1759988615850,32.68788288,227.57,227.56,4.39444007]
[1759988616251,32.68788288,227.57,227.56,5.07444007]
[1759988618648,1.46788288,227.58,227.56,5.07444007]
[1759988618841,1.46788288,227.58,227.56,4.39444007]
[1759988619466,1.46788288,227.58,227.57,5.07425231]
[1759988623353,32.68788288,227.59,227.57,5.07425231]
[1759988623548,32.68788288,227.59,227.58,0.72]
[1759988624447,32.68788288,227.59,227.58,5.11405923]
[1759988626970,1.46788288,227.61,227.58,5.11405923]
[1759988627159,1.46788288,227.61,227.59,0.72]
[1759988627871,1.46788288,227.61,227.6,0.72]
[1759988631177,6.58139059,227.61,227.53,0.72]
[1759988631360,1.46788288,227.54,227.53,0.72]
[1759988632066,1.46788288,227.54,227.53,5.11502483]
[1759988636149,1.46788288,227.56,227.53,16.1025869]
[1759988636356,1.46788288,227.56,227.54,0.72]
[1759988636565,1.46788288,227.56,227.55,0.72]
[1759988638689,1.46788288,227.56,227.55,4.39463854]
[1759988639467,1.46788288,227.56,227.55,5.11463854]
[1759988639979,1.46788288,227.56,227.53,0.72]
[1759988640279,1.46788288,227.54,227.53,0.72]
[1759988640859,1.46788288,227.54,227.51,0.72]
[1759988641461,1.46788288,227.52,227.48,11.70997714]
[1759988641762,1.46788288,227.5,227.48,11.70997714]
[1759988641968,5.87153152,227.59,227.47,0.1]
[1759988641969,1.46788288,227.52,227.49,16.10529165]
[1759988642167,1.46788288,227.52,227.5,0.72]
[1759988642380,1.46788288,227.54,227.49,15.38529165]
[1759988642570,32.62788288,227.54,227.51,0.72]
[1759988642885,32.62788288,227.54,227.52,0.72]
[1759988643261,32.62788288,227.54,227.52,4.39511336]
[1759988644781,32.62788288,227.54,227.52,5.11511336]
[1759988645459,32.62788288,227.54,227.5,0.72]
[1759988646162,1.46788288,227.52,227.49,10.98949404]
[1759988646357,1.46788288,227.52,227.49,11.67949404]
[1759988646578,1.46788288,227.52,227.49,10.98949404]
[1759988646788,1.46788288,227.52,227.5,0.69]
[1759988647171,1.46788288,227.52,227.49,10.98949404]
[1759988647762,1.46788288,227.52,227.49,11.67949404]
[1759988648378,1.46788288,227.52,227.5,0.69]
[1759988648577,1.46788288,227.52,227.51,4.39541119]
[1759988650186,1.46788288,227.52,227.49,11.67949404]
[1759988650360,1.46788288,227.52,227.5,0.69]
[1759988650666,134.8,227.57,227.51,0.69]
[1759988650866,1.46788288,227.54,227.51,0.69]
[1759988651068,1.46788288,227.54,227.52,0.69]
[1759988652285,1.46788288,227.54,227.52,5.08512363]
[1759988652589,1.46788288,227.54,227.52,4.39512363]
[1759988653581,1.46788288,227.54,227.52,0.69]
[1759988654668,1.46788288,227.54,227.49,10.98949404]
[1759988654873,1.46788288,227.52,227.48,4.39599085]
[1759988655095,1.46788288,227.52,227.49,0.69]
[1759988655293,32.62788288,227.52,227.48,4.39599085]
[1759988655590,1.46788288,227.5,227.47,0.1]
[1759988655780,1.46788288,227.5,227.47,4.49616403]
[1759988655981,1.46788288,227.5,227.47,5.18616403]
[1759988657282,1.46788288,227.5,227.47,4.49616403]
[1759988657590,1.46788288,227.5,227.48,0.69]
[1759988657972,1.46788288,227.5,227.49,5.08579761]
[1759988660099,31.16,227.51,227.49,5.08579761]
[1759988660476,31.16,227.51,227.48,4.39599085]
[1759988660796,31.16,227.51,227.48,5.08599085]
[1759988661303,31.16,227.51,227.49,0.69]
[1759988661976,33.45660775,227.51,227.49,0.69]
[1759988663710,33.45660775,227.51,227.48,15.38596799]
[1759988663891,33.45660775,227.51,227.48,16.07596799]
[1759988664494,2.29660775,227.51,227.48,16.07596799]
[1759988664678,31.16,227.5,227.48,16.07596799]
[1759988664878,2.29660775,227.51,227.48,16.07596799]
[1759988665098,31.16,227.51,227.48,16.07596799]
[1759988665303,2.29660775,227.51,227.49,0.69]
[1759988665606,33.45660775,227.51,227.49,0.69]
[1759988665810,34.15660775,227.51,227.48,15.38596799]
[1759988667102,33.45660775,227.51,227.48,15.38596799]
[1759988668194,34.15660775,227.51,227.48,4.39599085]
[1759988668786,33.45660775,227.51,227.48,4.39599085]
[1759988670602,31.16,227.5,227.48,4.39599085]
[1759988672610,31.16,227.5,227.48,5.08599085]
[1759988673104,31.16,227.49,227.48,5.08599085]
[1759988673607,31.16,227.49,227.48,4.39599085]
[1759988673805,31.86,227.49,227.48,4.39599085]
[1759988674007,31.16,227.49,227.48,4.39599085]
[1759988674214,33.45660775,227.49,227.48,4.39599085]
[1759988675103,31.16,227.49,227.48,5.08599085]
[1759988681103,25.89408616,227.58,227.48,16.07596799]
[1759988681429,2.29660775,227.55,227.49,0.72]
[1759988681633,2.29660775,227.55,227.5,4.39560439]
[1759988681797,0.7,227.54,227.5,4.39560439]
[1759988682114,0.7,227.54,227.5,5.11560439]
[1759988682318,2.29660775,227.55,227.5,5.11560439]
[1759988682513,2.99660775,227.55,227.5,5.11560439]
[1759988685803,31.16,227.54,227.5,5.11560439]
[1759988686312,31.16,227.53,227.5,5.11560439]
[1759988686828,31.16,227.53,227.51,0.66]
[1759988687732,2.29660775,227.55,227.52,4.395218]
[1759988687921,31.16,227.54,227.52,4.395218]
[1759988688121,31.16,227.54,227.52,5.055218]
[1759988689032,31.16,227.54,227.5,0.66]
[1759988689333,31.16,227.54,227.51,0.66]
[1759988689639,31.16,227.54,227.52,0.66]
[1759988690149,165.94,227.57,227.53,0.66]
[1759988690447,165.94,227.57,227.49,10.87647521]
[1759988690620,165.94,227.57,227.53,0.66]
[1759988690938,166.63,227.57,227.53,0.66]
[1759988691106,166.63,227.57,227.54,4.39483167]
[1759988691617,165.94,227.57,227.54,4.39483167]
[1759988692021,0.69,227.56,227.54,4.39483167]
[1759988692228,31.14,227.55,227.54,4.39483167]
[1759988692824,31.14,227.55,227.53,4.39502483]
[1759988694112,2.98660775,227.54,227.5,4.39560439]
[1759988694317,2.29660775,227.52,227.5,4.39560439]
[1759988694908,2.29660775,227.52,227.49,4.39579761]
[1759988695118,2.29660775,227.52,227.49,5.05579761]
[1759988695718,31.14,227.53,227.49,5.05579761]
[1759988696318,31.83,227.53,227.49,5.05579761]
[1759988696731,31.83,227.53,227.49,4.39579761]
[1759988696923,2.98660775,227.52,227.49,4.39579761]
[1759988697126,2.29660775,227.52,227.49,0.66]
[1759988700216,2.29660775,227.52,227.5,4.39560439]
[1759988701223,2.29660775,227.52,227.5,5.05560439]
[1759988701430,2.29660775,227.52,227.5,4.39560439]
[1759988702511,2.29660775,227.52,227.49,4.39579761]
[1759988702720,2.29660775,227.52,227.49,5.05579761]
[1759988702910,2.29660775,227.52,227.49,4.39579761]
[1759988703114,31.14,227.51,227.49,4.39579761]
[1759988704436,31.14,227.51,227.49,5.05579761]
[1759988704741,31.14,227.51,227.5,0.66]
[1759988705335,31.14,227.51,227.49,4.39579761]
[1759988706031,0.71,227.5,227.47,4.49604758]
[1759988706247,3.00660775,227.5,227.47,4.49604758]
[1759988706432,2.29660775,227.5,227.47,4.49604758]
[1759988706641,3.00660775,227.5,227.47,4.49604758]
[1759988706844,2.29660775,227.48,227.47,4.49604758]
[1759988707137,33.43660775,227.48,227.47,4.49604758]
[1759988707723,34.14660775,227.48,227.47,0.1]
[1759988708339,33.43660775,227.48,227.47,0.1]
[1759988709551,2.29660775,227.48,227.47,0.1]
[1759988709728,33.43660775,227.48,227.47,0.1]
[1759988712518,2.29660775,227.48,227.47,0.1]
[1759988712742,33.43660775,227.48,227.47,0.1]
[1759988712944,2.29660775,227.48,227.47,0.1]
[1759988713147,33.43660775,227.48,227.47,0.1]
[1759988713761,2.29660775,227.48,227.47,0.1]
[1759988713932,33.41660775,227.48,227.47,0.1]
[1759988714336,2.29660775,227.48,227.47,0.1]
[1759988714548,33.41660775,227.48,227.47,0.1]
[1759988717343,2.29660775,227.48,227.47,0.1]
[1759988717526,33.41660775,227.48,227.47,0.1]
[1759988718744,3.00660775,227.48,227.47,0.1]
[1759988718928,51.69568156,227.48,227.47,0.1]
[1759988719125,59.75617641,227.48,227.47,0.1]
[1759988720022,28.63617641,227.48,227.47,0.1]
[1759988720227,59.75617641,227.48,227.47,0.1]
[1759988722452,59.75084661,227.48,227.47,0.1]
[1759988723840,62.51412236,227.48,227.47,0.1]
[1759988724230,31.39412236,227.48,227.47,0.1]
[1759988724431,62.51412236,227.48,227.47,0.1]
[1759988724930,31.39412236,227.48,227.47,0.1]
[1759988725143,42.09387189,227.48,227.47,0.1]
[1759988725343,44.27517014,227.48,227.47,0.1]
[1759988729338,13.15517014,227.48,227.47,0.1]
[1759988729548,44.27517014,227.48,227.47,0.1]
[1759988730542,28.4455401,227.48,227.47,0.1]
[1759988730755,62.50916773,227.48,227.47,0.1]
[1759988731139,31.38916773,227.48,227.47,0.1]
[1759988731340,62.50916773,227.48,227.47,0.1]
[1759988732360,59.5655401,227.48,227.47,0.1]
[1759988732956,31.67647521,227.46,227.45,1e-08]
[1759988733169,20.8,227.39,227.38,0.1]
[1759988733455,32.59129825,227.39,227.38,0.1]
[1759988733675,34.35259808,227.39,227.38,0.1]
[1759988733843,38.75032885,227.39,227.38,0.1]
[1759988734168,7.63032885,227.39,227.38,0.1]
[1759988734476,37.2790306,227.39,227.38,0.1]
[1759988734643,38.75032885,227.39,227.38,0.1]
[1759988735336,7.63032885,227.39,227.38,0.1]
[1759988735539,38.75032885,227.39,227.38,0.1]
[1759988735743,56.17199706,227.39,227.38,0.1]
[1759988736045,76.97199706,227.39,227.38,0.1]
[1759988736273,45.85199706,227.39,227.38,0.1]
[1759988736470,76.97199706,227.39,227.38,0.1]
[1759988736963,68.95550581,227.39,227.38,0.1]
[1759988737264,70.42680406,227.39,227.38,0.1]
[1759988737653,71.89810231,227.39,227.38,0.1]
[1759988738283,72.55810231,227.39,227.38,0.1]
[1759988739261,76.97199706,227.39,227.38,0.1]
[1759988739977,20.8,227.35,227.33,0.1]
[1759988740144,20.8,227.34,227.33,0.1]
[1759988740345,51.92,227.34,227.33,0.1]
[1759988740766,53.68168769,227.34,227.33,0.1]
[1759988741960,53.68168769,227.34,227.33,0.77]
[1759988741961,26.96038567,227.34,227.33,0.77]
[1759988742170,58.08038567,227.34,227.33,0.1]
[1759988743789,26.96038567,227.34,227.33,0.1]
[1759988743976,56.31869798,227.34,227.33,0.1]
[1759988745052,57.78999623,227.34,227.33,0.1]
[1759988747463,167.39129825,227.36,227.33,5.1787143]
[1759988747666,136.27129825,227.36,227.34,0.68]
[1759988747865,31.12,227.35,227.34,0.68]
[1759988750485,31.12,227.35,227.34,5.07869798]
[1759988751785,32.59129825,227.35,227.34,5.07869798]
[1759988752260,31.12,227.35,227.34,5.07869798]
[1759988753074,32.59129825,227.35,227.34,0.68]
[1759988753985,31.12,227.35,227.34,0.68]
[1759988754283,31.12,227.35,227.34,5.07869798]
[1759988755368,31.12,227.35,227.34,0.68]
[1759988755579,32.59129825,227.35,227.34,0.68]
[1759988755765,32.59129825,227.35,227.33,0.1]
[1759988755992,1.47129825,227.34,227.33,0.1]
[1759988756170,32.59129825,227.34,227.33,0.1]
[1759988759493,37.70999623,227.34,227.33,0.1]
[1759988759868,36.98999623,227.34,227.33,0.1]
[1759988760476,32.59129825,227.34,227.33,0.1]
[1759988760978,134.8,227.36,227.33,0.78]
[1759988761187,31.1,227.35,227.33,0.78]
[1759988761788,31.1,227.35,227.33,5.17881642]
[1759988761980,31.1,227.35,227.34,0.68]
[1759988763194,1.47129825,227.41,227.34,5.07869798]
[1759988763372,31.1,227.4,227.35,0.68]
[1759988763572,31.1,227.39,227.35,0.68]
[1759988763769,31.1,227.38,227.35,0.68]
[1759988763968,31.1,227.37,227.35,0.68]
[1759988764694,31.1,227.38,227.35,0.68]
[1759988765101,31.1,227.37,227.36,4.39831104]
[1759988765301,31.1,227.37,227.36,5.07831104]
[1759988768501,31.1,227.38,227.36,5.07831104]
[1759988768796,31.1,227.38,227.37,0.67]
[1759988769095,31.1,227.4,227.37,0.67]
[1759988769304,31.1,227.4,227.38,0.67]
[1759988769494,31.1,227.4,227.39,0.67]
[1759988770280,1.47129825,227.42,227.39,0.67]
[1759988770480,31.1,227.4,227.34,15.39544294]
[1759988770788,20.8,227.46,227.35,10.87647521]
[1759988770985,31.1,227.45,227.36,0.67]
[1759988771303,31.1,227.45,227.37,10.87647521]
[1759988771502,31.1,227.45,227.38,0.67]
[1759988772806,31.1,227.45,227.39,15.39205769]
[1759988773006,31.1,227.45,227.4,0.67]
[1759988773888,31.1,227.45,227.41,4.397344]
[1759988774095,31.1,227.45,227.42,0.67]
[1759988775113,31.1,227.45,227.43,0.67]
[1759988775318,31.1,227.45,227.44,0.67]
[1759988776210,134.8,227.44,227.37,0.67]
[1759988776398,134.8,227.44,227.34,4.39869798]
[1759988776399,1.47129825,227.39,227.35,10.99620456]
[1759988776593,134.8,227.44,227.35,10.99620456]
[1759988776594,1.47129825,227.38,227.35,10.99620456]
[1759988776788,1.47129825,227.38,227.35,11.66620456]
[1759988776986,1.47129825,227.38,227.34,4.39869798]
[1759988777192,1.47129825,227.37,227.34,5.06869798]
[1759988777396,1.47129825,227.37,227.34,4.39869798]
[1759988777593,1.47129825,227.38,227.35,0.67]
[1759988778293,1.47129825,227.38,227.36,4.39831104]
[1759988778605,32.55129825,227.38,227.36,4.39831104]
[1759988779404,32.55129825,227.38,227.34,4.39869798]
[1759988779609,32.55129825,227.38,227.34,5.06869798]
[1759988779808,32.55129825,227.38,227.34,4.39869798]
[1759988780015,32.55129825,227.38,227.35,0.67]
[1759988780526,32.55129825,227.38,227.36,4.39831104]
[1759988781722,31.08,227.38,227.36,5.06831104]
[1759988782316,31.08,227.39,227.36,4.39831104]
[1759988782493,32.55129825,227.39,227.35,4.3985045]
[1759988782692,32.55129825,227.39,227.35,5.0685045]
[1759988782891,1.47129825,227.36,227.33,0.1]
[1759988783110,22.27129825,227.34,227.33,0.1]
[1759988783498,54.02129825,227.34,227.33,0.1]
[1759988784307,22.94129825,227.34,227.33,0.1]
[1759988784607,54.02129825,227.34,227.33,0.1]
[1759988785109,58.41999623,227.34,227.33,0.1]
[1759988786115,59.249354,227.34,227.33,0.1]
[1759988787003,28.169354,227.34,227.33,0.1]
[1759988787325,54.18065602,227.34,227.33,0.1]
[1759988787701,54.85065602,227.34,227.33,0.1]
[1759988790013,23.77065602,227.34,227.33,0.1]
[1759988790214,54.18065602,227.34,227.33,0.1]
[1759988795926,51.88,227.34,227.33,0.1]
[1759988797323,51.88,227.34,227.33,0.82]
[1759988797324,31.08,227.34,227.33,0.82]
[1759988797500,134.8,227.35,227.33,0.82]
[1759988797827,31.08,227.34,227.33,0.82]
[1759988800826,31.08,227.34,227.33,0.1]
[1759988802635,134.8,227.35,227.33,0.1]
[1759988802836,31.08,227.34,227.33,0.1]
[1759988803214,9.60673623,227.4,227.33,0.1]
[1759988803215,134.8,227.42,227.33,4.49889147]
[1759988803514,31.08,227.41,227.36,2.29843224]
[1759988803904,31.08,227.41,227.37,0.68]
[1759988804106,31.08,227.41,227.38,0.68]
[1759988804315,31.08,227.41,227.39,0.68]
[1759988805028,31.08,227.41,227.4,0.68]
[1759988805829,134.8,227.42,227.4,0.68]
[1759988806134,31.08,227.41,227.4,0.68]
[1759988807728,31.08,227.41,227.4,7.37596961]
[1759988807911,31.08,227.41,227.4,5.07753737]
[1759988808111,134.8,227.42,227.4,5.07753737]
[1759988808316,134.8,227.42,227.41,0.68]